[Event "Titled Tuesday Blitz November 14 Late 2023"]
[White "Martin Barcelo, Carles"]
[Black "Golubenko, Valentina"]
[WhiteFideId "24561444"]
[BlackFideId "4501993"]
[WhiteElo "2474"]
[BlackElo "2297"]
[Result "0-1"]
[Round "5"]
[TimeControl "180+1"]
[Date "2023.11.14"]
[WhiteClock "0:01:43"]
[BlackClock "0:00:12"]
[Board "110"]

1. e4 {[%clk 0:03:00]}  e6 {[%clk 0:02:59]} 2. Nf3 {[%clk 0:02:54]}  d5 {[%clk 0:02:58]} 3. e5 {[%clk 0:02:55]}  c5 {[%clk 0:02:58]} 4. b4 {[%clk 0:02:56]}  c4 {[%clk 0:02:56]} 5. a3 {[%clk 0:02:42]}  a6 {[%clk 0:02:54]} 6. d4 {[%clk 0:02:42]}  cxd3 {[%clk 0:02:52]} 7. cxd3 {[%clk 0:02:42]}  Nc6 {[%clk 0:02:52]} 8. d4 {[%clk 0:02:42]}  Nge7 {[%clk 0:02:52]} 9. Bd3 {[%clk 0:02:42]}  Nf5 {[%clk 0:02:52]} 10. Bxf5 {[%clk 0:02:41]}  exf5 {[%clk 0:02:52]} 11. Nc3 {[%clk 0:02:42]}  Be6 {[%clk 0:02:51]} 12. h4 {[%clk 0:02:42]}  Be7 {[%clk 0:02:49]} 13. Bg5 {[%clk 0:02:42]}  f6 {[%clk 0:02:47]} 14. exf6 {[%clk 0:02:42]}  Bxf6 {[%clk 0:02:48]} 15. Qd2 {[%clk 0:02:40]}  O-O {[%clk 0:02:47]} 16. Ne2 {[%clk 0:02:39]}  h6 {[%clk 0:02:26]} 17. Bxf6 {[%clk 0:02:36]}  Qxf6 {[%clk 0:02:26]} 18. h5 {[%clk 0:02:33]}  Rae8 {[%clk 0:02:10]} 19. Kf1 {[%clk 0:02:31]}  Nd8 {[%clk 0:02:02]} 20. Nf4 {[%clk 0:02:31]}  b5 {[%clk 0:01:35]} 21. Ne5 {[%clk 0:02:29]}  Kh7 {[%clk 0:01:20]} 22. g3 {[%clk 0:02:28]}  Nf7 {[%clk 0:01:11]} 23. Nxf7 {[%clk 0:02:28]}  Bxf7 {[%clk 0:01:09]} 24. Kg2 {[%clk 0:02:27]}  Re4 {[%clk 0:01:08]} 25. Rad1 {[%clk 0:02:25]}  Rfe8 {[%clk 0:01:07]} 26. f3 {[%clk 0:02:25]}  Re3 {[%clk 0:01:06]} 27. Kf2 {[%clk 0:02:22]}  Rxa3 {[%clk 0:00:58]} 28. Rhe1 {[%clk 0:02:22]}  Rxe1 {[%clk 0:00:55]} 29. Rxe1 {[%clk 0:02:23]}  Qd6 {[%clk 0:00:36]} 30. Rc1 {[%clk 0:02:19]}  a5 {[%clk 0:00:22]} 31. bxa5 {[%clk 0:02:16]}  b4 {[%clk 0:00:22]} 32. Rc8 {[%clk 0:02:16]}  b3 {[%clk 0:00:20]} 33. Kg1 {[%clk 0:01:53]}  Ra1+ {[%clk 0:00:17]} 34. Rc1 {[%clk 0:01:51]}  Qa3 {[%clk 0:00:15]} 35. Nd3 {[%clk 0:01:41]}  Rxc1+ {[%clk 0:00:14]} 36. Qxc1 {[%clk 0:01:41]}  Qxc1+ {[%clk 0:00:14]} 37. Nxc1 {[%clk 0:01:42]}  b2 {[%clk 0:00:15]} 38. Ne2 {[%clk 0:01:41]}  b1=Q+ {[%clk 0:00:15]} 39. Kf2 {[%clk 0:01:42]}  Qa2 {[%clk 0:00:15]} 40. Ke3 {[%clk 0:01:42]}  Qxa5 {[%clk 0:00:15]} 41. Kf4 {[%clk 0:01:42]}  Qd2+ {[%clk 0:00:15]} 42. Ke5 {[%clk 0:01:42]}  Qxe2+ {[%clk 0:00:15]} 43. Kxf5 {[%clk 0:01:42]}  Qd3+ {[%clk 0:00:14]} 44. Ke5 {[%clk 0:01:43]}  Qe3+ {[%clk 0:00:14]} 45. Kd6 {[%clk 0:01:43]}  Qxd4 {[%clk 0:00:14]} 46. Ke7 {[%clk 0:01:44]}  Qf6+ {[%clk 0:00:13]} 47. Kd7 {[%clk 0:01:41]}  d4 {[%clk 0:00:13]} 48. g4 {[%clk 0:01:41]}  d3 {[%clk 0:00:13]} 49. g5 {[%clk 0:01:42]}  hxg5 {[%clk 0:00:14]} 50. f4 {[%clk 0:01:43]}  Be6+ {[%clk 0:00:14]} 51. Kc6 {[%clk 0:01:42]}  gxf4 {[%clk 0:00:14]} 52. h6 {[%clk 0:01:42]}  gxh6 {[%clk 0:00:14]} 53. Kc7 {[%clk 0:01:42]}  d2 {[%clk 0:00:14]} 54. Kb7 {[%clk 0:01:42]}  d1=Q {[%clk 0:00:14]} 55. Kc7 {[%clk 0:01:43]}  Qe5+ {[%clk 0:00:13]} 56. Kc6 {[%clk 0:01:43]}  Qdd6+ {[%clk 0:00:13]} 57. Kb7 {[%clk 0:01:43]}  Qb5+ {[%clk 0:00:12]} 58. Ka7 {[%clk 0:01:43]}  Qda6# {[%clk 0:00:12]} 0-1


[Site "https://www.chess.com"]

[Event "Titled Tuesday Blitz November 14 Late 2023"]
[White "Floresvillar Gonzalez, Luis Migu"]
[Black "Kovalevsky, Stanislav"]
[WhiteFideId "5100542"]
[BlackFideId "13508598"]
[WhiteElo "2215"]
[BlackElo "2452"]
[Result "1/2-1/2"]
[Round "5"]
[TimeControl "180+1"]
[Date "2023.11.14"]
[WhiteClock "0:01:29"]
[BlackClock "0:01:49"]
[Board "112"]

1. d4 {[%clk 0:02:55]}  d5 {[%clk 0:02:59]} 2. c3 {[%clk 0:02:54]}  Nf6 {[%clk 0:02:58]} 3. Bf4 {[%clk 0:02:54]}  c5 {[%clk 0:02:58]} 4. e3 {[%clk 0:02:52]}  Nc6 {[%clk 0:02:58]} 5. Bd3 {[%clk 0:02:50]}  c4 {[%clk 0:02:53]} 6. Bc2 {[%clk 0:02:49]}  Bg4 {[%clk 0:02:52]} 7. Nf3 {[%clk 0:02:47]}  e6 {[%clk 0:02:49]} 8. Nbd2 {[%clk 0:02:47]}  Bd6 {[%clk 0:02:49]} 9. Bxd6 {[%clk 0:02:44]}  Qxd6 {[%clk 0:02:49]} 10. h3 {[%clk 0:02:45]}  Bh5 {[%clk 0:02:49]} 11. O-O {[%clk 0:02:44]}  O-O {[%clk 0:02:48]} 12. Qe1 {[%clk 0:02:41]}  Rfe8 {[%clk 0:02:41]} 13. e4 {[%clk 0:02:41]}  dxe4 {[%clk 0:02:37]} 14. Nxe4 {[%clk 0:02:40]}  Nxe4 {[%clk 0:02:34]} 15. Qxe4 {[%clk 0:02:38]}  Bg6 {[%clk 0:02:33]} 16. Qe2 {[%clk 0:02:37]}  e5 {[%clk 0:02:29]} 17. Bxg6 {[%clk 0:02:36]}  hxg6 {[%clk 0:02:25]} 18. dxe5 {[%clk 0:02:32]}  Nxe5 {[%clk 0:02:22]} 19. Nxe5 {[%clk 0:02:32]}  Rxe5 {[%clk 0:02:22]} 20. Qxc4 {[%clk 0:02:32]}  Rae8 {[%clk 0:02:19]} 21. Rad1 {[%clk 0:02:29]}  Qb6 {[%clk 0:02:20]} 22. Qb3 {[%clk 0:02:25]}  Qxb3 {[%clk 0:02:18]} 23. axb3 {[%clk 0:02:24]}  Re2 {[%clk 0:02:18]} 24. Rd7 {[%clk 0:02:10]}  b6 {[%clk 0:02:17]} 25. Rxa7 {[%clk 0:02:09]}  Rxb2 {[%clk 0:02:17]} 26. b4 {[%clk 0:02:07]}  Rc2 {[%clk 0:02:13]} 27. Rc7 {[%clk 0:02:06]}  Ree2 {[%clk 0:02:07]} 28. Rc6 {[%clk 0:02:05]}  b5 {[%clk 0:02:06]} 29. Rc5 {[%clk 0:02:05]}  f6 {[%clk 0:01:58]} 30. Rxb5 {[%clk 0:02:03]}  Rxc3 {[%clk 0:01:58]} 31. Rb8+ {[%clk 0:01:56]}  Kh7 {[%clk 0:01:57]} 32. b5 {[%clk 0:01:48]}  Rb3 {[%clk 0:01:55]} 33. Rd1 {[%clk 0:01:36]}  Rbb2 {[%clk 0:01:51]} 34. Rf1 {[%clk 0:01:34]}  Rb3 {[%clk 0:01:51]} 35. Rd1 {[%clk 0:01:30]}  Rbb2 {[%clk 0:01:49]} 36. Rf1 {[%clk 0:01:29]}  Rb3 {[%clk 0:01:49]} 1/2-1/2


[Site "https://www.chess.com"]

[Event "Titled Tuesday Blitz November 14 Late 2023"]
[White "Akhayan, Ruben"]
[Black "claudiuprunescu"]
[WhiteFideId "204439"]
[WhiteElo "2427"]
[BlackElo "2206"]
[Result "1-0"]
[Round "5"]
[TimeControl "180+1"]
[Date "2023.11.14"]
[WhiteClock "0:00:49"]
[BlackClock "0:00:58"]
[Board "115"]

1. e4 {[%clk 0:03:00]}  e6 {[%clk 0:02:59]} 2. d4 {[%clk 0:03:00]}  d5 {[%clk 0:02:59]} 3. Nc3 {[%clk 0:03:00]}  Nf6 {[%clk 0:02:57]} 4. e5 {[%clk 0:02:53]}  Nfd7 {[%clk 0:02:56]} 5. Nf3 {[%clk 0:02:53]}  c5 {[%clk 0:02:54]} 6. dxc5 {[%clk 0:02:54]}  Bxc5 {[%clk 0:02:51]} 7. Bd3 {[%clk 0:02:52]}  Nc6 {[%clk 0:02:50]} 8. Bf4 {[%clk 0:02:52]}  Nb4 {[%clk 0:02:48]} 9. O-O {[%clk 0:02:46]}  Nxd3 {[%clk 0:02:48]} 10. Qxd3 {[%clk 0:02:44]}  Be7 {[%clk 0:02:45]} 11. Nd4 {[%clk 0:02:32]}  O-O {[%clk 0:02:44]} 12. Rfe1 {[%clk 0:02:27]}  a6 {[%clk 0:02:39]} 13. Rad1 {[%clk 0:02:26]}  Nc5 {[%clk 0:02:39]} 14. Qg3 {[%clk 0:02:25]}  Re8 {[%clk 0:02:32]} 15. Nf3 {[%clk 0:02:14]}  Bd7 {[%clk 0:02:30]} 16. Bg5 {[%clk 0:02:13]}  b5 {[%clk 0:02:26]} 17. Bxe7 {[%clk 0:02:12]}  Qxe7 {[%clk 0:02:23]} 18. a3 {[%clk 0:02:12]}  Rac8 {[%clk 0:02:20]} 19. Nd4 {[%clk 0:02:10]}  a5 {[%clk 0:02:14]} 20. Ndxb5 {[%clk 0:02:07]}  Bxb5 {[%clk 0:02:14]} 21. Nxb5 {[%clk 0:02:07]}  Rb8 {[%clk 0:02:11]} 22. Nd6 {[%clk 0:02:07]}  Red8 {[%clk 0:02:07]} 23. b4 {[%clk 0:01:49]}  axb4 {[%clk 0:02:05]} 24. axb4 {[%clk 0:01:49]}  Rxb4 {[%clk 0:02:03]} 25. Qc3 {[%clk 0:01:44]}  Na6 {[%clk 0:01:56]} 26. Ra1 {[%clk 0:01:32]}  Rb6 {[%clk 0:01:43]} 27. Nc8 {[%clk 0:01:26]}  Qb4 {[%clk 0:01:35]} 28. Qxb4 {[%clk 0:01:18]}  Rxb4 {[%clk 0:01:35]} 29. Ne7+ {[%clk 0:01:15]}  Kf8 {[%clk 0:01:33]} 30. Nc6 {[%clk 0:01:15]}  Rb6 {[%clk 0:01:14]} 31. Nxd8 {[%clk 0:01:15]}  Ke7 {[%clk 0:01:14]} 32. Nb7 {[%clk 0:01:04]}  Nb4 {[%clk 0:01:09]} 33. Reb1 {[%clk 0:00:52]}  Rxb7 {[%clk 0:00:58]} 34. c3 {[%clk 0:00:49]} 1-0


[Site "https://www.chess.com"]

[Event "Titled Tuesday Blitz November 14 Late 2023"]
[White "Kanyamarala, Tarun"]
[Black "patzersame"]
[WhiteFideId "45004714"]
[WhiteElo "2493"]
[BlackElo "2323"]
[Result "1-0"]
[Round "5"]
[TimeControl "180+1"]
[Date "2023.11.14"]
[WhiteClock "0:00:49"]
[BlackClock "0:00:20"]
[Board "119"]

1. d4 {[%clk 0:02:57]}  d5 {[%clk 0:02:59]} 2. Nc3 {[%clk 0:02:55]}  e6 {[%clk 0:02:54]} 3. Bf4 {[%clk 0:02:56]}  Bd6 {[%clk 0:02:53]} 4. e3 {[%clk 0:02:56]}  Bxf4 {[%clk 0:02:53]} 5. exf4 {[%clk 0:02:56]}  Nf6 {[%clk 0:02:53]} 6. Nf3 {[%clk 0:02:55]}  O-O {[%clk 0:02:53]} 7. Bd3 {[%clk 0:02:55]}  b6 {[%clk 0:02:54]} 8. Qe2 {[%clk 0:02:54]}  a5 {[%clk 0:02:53]} 9. Ne5 {[%clk 0:02:44]}  Ba6 {[%clk 0:02:53]} 10. O-O {[%clk 0:02:38]}  Bxd3 {[%clk 0:02:52]} 11. Qxd3 {[%clk 0:02:37]}  c5 {[%clk 0:02:52]} 12. Ne2 {[%clk 0:02:33]}  Qd6 {[%clk 0:02:49]} 13. c3 {[%clk 0:02:32]}  Ne4 {[%clk 0:02:46]} 14. Nc4 {[%clk 0:02:29]}  dxc4 {[%clk 0:02:34]} 15. Qxe4 {[%clk 0:02:29]}  Na6 {[%clk 0:02:27]} 16. Rad1 {[%clk 0:02:27]}  Rac8 {[%clk 0:02:10]} 17. d5 {[%clk 0:02:25]}  b5 {[%clk 0:02:01]} 18. a4 {[%clk 0:02:08]}  bxa4 {[%clk 0:01:43]} 19. Qxc4 {[%clk 0:02:06]}  exd5 {[%clk 0:01:40]} 20. Rxd5 {[%clk 0:02:05]}  Qc6 {[%clk 0:01:40]} 21. Ng3 {[%clk 0:01:59]}  g6 {[%clk 0:01:18]} 22. h3 {[%clk 0:01:57]}  Qb7 {[%clk 0:01:07]} 23. Rd6 {[%clk 0:01:51]}  Rc6 {[%clk 0:01:03]} 24. Rfd1 {[%clk 0:01:50]}  Rfc8 {[%clk 0:01:02]} 25. Qxa4 {[%clk 0:01:18]}  Qb6 {[%clk 0:01:02]} 26. Ne4 {[%clk 0:01:12]}  f5 {[%clk 0:00:47]} 27. Nf6+ {[%clk 0:01:09]}  Kg7 {[%clk 0:00:47]} 28. Nd7 {[%clk 0:01:00]}  Qb7 {[%clk 0:00:24]} 29. Qxa5 {[%clk 0:00:51]}  Qxb2 {[%clk 0:00:23]} 30. Rxc6 {[%clk 0:00:49]}  Rxc6 {[%clk 0:00:23]} 31. Qd8 {[%clk 0:00:49]}  Qxc3 {[%clk 0:00:20]} 32. Qf8# {[%clk 0:00:49]} 1-0


[Site "https://www.chess.com"]

[Event "Titled Tuesday Blitz November 14 Late 2023"]
[White "Gasparyan, David"]
[Black "Bazzano, Sebastian"]
[WhiteFideId "13311980"]
[BlackFideId "104566"]
[WhiteElo "2488"]
[BlackElo "2313"]
[Result "1-0"]
[Round "5"]
[TimeControl "180+1"]
[Date "2023.11.14"]
[WhiteClock "0:00:56"]
[BlackClock "0:00:00"]
[Board "120"]

1. e4 {[%clk 0:02:54]}  e6 {[%clk 0:02:59]} 2. Nf3 {[%clk 0:02:54]}  d5 {[%clk 0:02:59]} 3. exd5 {[%clk 0:02:54]}  exd5 {[%clk 0:02:59]} 4. d4 {[%clk 0:02:54]}  Nf6 {[%clk 0:02:59]} 5. Be2 {[%clk 0:02:54]}  Be7 {[%clk 0:03:00]} 6. O-O {[%clk 0:02:53]}  O-O {[%clk 0:03:00]} 7. Re1 {[%clk 0:02:52]}  Bg4 {[%clk 0:02:59]} 8. Bf4 {[%clk 0:02:51]}  c6 {[%clk 0:02:59]} 9. Nbd2 {[%clk 0:02:51]}  Nbd7 {[%clk 0:02:52]} 10. Ne5 {[%clk 0:02:50]}  Bxe2 {[%clk 0:02:51]} 11. Qxe2 {[%clk 0:02:51]}  Re8 {[%clk 0:02:49]} 12. Qd3 {[%clk 0:02:46]}  Nf8 {[%clk 0:02:42]} 13. Re3 {[%clk 0:02:39]}  Ng6 {[%clk 0:02:34]} 14. Bg3 {[%clk 0:02:38]}  Nh5 {[%clk 0:02:08]} 15. Qf5 {[%clk 0:02:18]}  Nf6 {[%clk 0:02:08]} 16. Rae1 {[%clk 0:02:17]}  Bf8 {[%clk 0:01:41]} 17. h4 {[%clk 0:02:11]}  Qc8 {[%clk 0:01:34]} 18. Qf3 {[%clk 0:02:07]}  Nxe5 {[%clk 0:01:19]} 19. Rxe5 {[%clk 0:02:05]}  Rxe5 {[%clk 0:00:59]} 20. Rxe5 {[%clk 0:01:59]}  Qg4 {[%clk 0:00:50]} 21. Qe3 {[%clk 0:01:41]}  Qd1+ {[%clk 0:00:41]} 22. Qe1 {[%clk 0:01:41]}  Qxc2 {[%clk 0:00:35]} 23. h5 {[%clk 0:01:17]}  Bb4 {[%clk 0:00:34]} 24. Bf4 {[%clk 0:01:17]}  Ne4 {[%clk 0:00:29]} 25. f3 {[%clk 0:01:10]}  Nxd2 {[%clk 0:00:18]} 26. Re8+ {[%clk 0:01:09]}  Rxe8 {[%clk 0:00:17]} 27. Qxe8+ {[%clk 0:01:10]}  Bf8 {[%clk 0:00:17]} 28. Bd6 {[%clk 0:01:05]}  h6 {[%clk 0:00:06]} 29. Qxf8+ {[%clk 0:01:03]}  Kh7 {[%clk 0:00:06]} 30. Qxf7 {[%clk 0:01:03]}  Qd1+ {[%clk 0:00:04]} 31. Kh2 {[%clk 0:01:03]}  Qe2 {[%clk 0:00:04]} 32. Qf5+ {[%clk 0:01:02]}  Kg8 {[%clk 0:00:03]} 33. Be5 {[%clk 0:00:58]}  Nf1+ {[%clk 0:00:00]} 34. Kh3 {[%clk 0:00:56]} 1-0


[Site "https://www.chess.com"]

[Event "Titled Tuesday Blitz November 14 Late 2023"]
[White "Dodaro, Mattia"]
[Black "Weisz, Bryan"]
[WhiteFideId "28583400"]
[BlackFideId "30934133"]
[WhiteElo "2247"]
[BlackElo "2430"]
[Result "0-1"]
[Round "5"]
[TimeControl "180+1"]
[Date "2023.11.14"]
[WhiteClock "0:01:30"]
[BlackClock "0:01:37"]
[Board "123"]

1. Nc3 {[%clk 0:02:49]}  Nf6 {[%clk 0:02:55]} 2. g3 {[%clk 0:02:46]}  c5 {[%clk 0:02:55]} 3. Bg2 {[%clk 0:02:47]}  Nc6 {[%clk 0:02:55]} 4. d3 {[%clk 0:02:46]}  d5 {[%clk 0:02:55]} 5. Bg5 {[%clk 0:02:45]}  e6 {[%clk 0:02:46]} 6. e4 {[%clk 0:02:42]}  d4 {[%clk 0:02:29]} 7. Nce2 {[%clk 0:02:40]}  e5 {[%clk 0:02:24]} 8. f4 {[%clk 0:02:27]}  Be7 {[%clk 0:02:18]} 9. f5 {[%clk 0:02:21]}  Ng4 {[%clk 0:02:15]} 10. Bc1 {[%clk 0:01:59]}  Bg5 {[%clk 0:02:13]} 11. Nf4 {[%clk 0:01:51]}  h5 {[%clk 0:01:58]} 12. Nxh5 {[%clk 0:01:42]}  Bxc1 {[%clk 0:01:45]} 13. Nxg7+ {[%clk 0:01:38]}  Kf8 {[%clk 0:01:42]} 14. Qxg4 {[%clk 0:01:35]}  Bxb2 {[%clk 0:01:37]} 15. Rb1 {[%clk 0:01:35]}  Bc3+ {[%clk 0:01:37]} 16. Kf1 {[%clk 0:01:30]}  Rg8 {[%clk 0:01:37]} 0-1


[Site "https://www.chess.com"]

[Event "Titled Tuesday Blitz November 14 Late 2023"]
[White "Acosta Cruz, Oscar Yosimar"]
[Black "Su, Dion"]
[WhiteFideId "5111269"]
[BlackFideId "2029731"]
[WhiteElo "2211"]
[BlackElo "2406"]
[Result "0-1"]
[Round "5"]
[TimeControl "180+1"]
[Date "2023.11.14"]
[WhiteClock "0:01:20"]
[BlackClock "0:01:54"]
[Board "125"]

1. d4 {[%clk 0:02:57]}  Nf6 {[%clk 0:02:57]} 2. Nf3 {[%clk 0:02:57]}  e6 {[%clk 0:02:57]} 3. Bf4 {[%clk 0:02:57]}  d5 {[%clk 0:02:57]} 4. e3 {[%clk 0:02:58]}  Bd6 {[%clk 0:02:57]} 5. Bg3 {[%clk 0:02:58]}  Nc6 {[%clk 0:02:58]} 6. Nbd2 {[%clk 0:02:59]}  O-O {[%clk 0:02:58]} 7. c3 {[%clk 0:02:57]}  Qe7 {[%clk 0:02:58]} 8. Ne5 {[%clk 0:02:57]}  Nd7 {[%clk 0:02:58]} 9. f4 {[%clk 0:02:55]}  f6 {[%clk 0:02:58]} 10. Nxc6 {[%clk 0:02:54]}  bxc6 {[%clk 0:02:58]} 11. Bd3 {[%clk 0:02:54]}  e5 {[%clk 0:02:58]} 12. O-O {[%clk 0:02:45]}  exf4 {[%clk 0:02:57]} 13. Qh5 {[%clk 0:01:56]}  Qxe3+ {[%clk 0:02:52]} 14. Kh1 {[%clk 0:01:52]}  Qxd3 {[%clk 0:02:52]} 15. Be1 {[%clk 0:01:51]}  Nb6 {[%clk 0:02:43]} 16. Rf3 {[%clk 0:01:51]}  Qf5 {[%clk 0:02:36]} 17. Qh4 {[%clk 0:01:49]}  Bd7 {[%clk 0:02:26]} 18. Rh3 {[%clk 0:01:42]}  Rae8 {[%clk 0:02:14]} 19. Nf3 {[%clk 0:01:32]}  Re2 {[%clk 0:02:03]} 20. Ng1 {[%clk 0:01:20]}  Rxb2 {[%clk 0:01:54]} 0-1


[Site "https://www.chess.com"]

[Event "Titled Tuesday Blitz November 14 Late 2023"]
[White "Kujawski, Adam"]
[Black "Darko-Dimitrijevic"]
[WhiteFideId "1100920"]
[WhiteElo "2399"]
[BlackElo "2200"]
[Result "1-0"]
[Round "5"]
[TimeControl "180+1"]
[Date "2023.11.14"]
[WhiteClock "0:00:04"]
[BlackClock "0:00:00"]
[Board "127"]

1. e4 {[%clk 0:03:00]}  d6 {[%clk 0:02:59]} 2. d4 {[%clk 0:03:00]}  c6 {[%clk 0:02:59]} 3. a4 {[%clk 0:02:59]}  Nf6 {[%clk 0:02:58]} 4. Nc3 {[%clk 0:02:58]}  Qa5 {[%clk 0:02:53]} 5. Bd2 {[%clk 0:02:56]}  e5 {[%clk 0:02:52]} 6. dxe5 {[%clk 0:02:54]}  dxe5 {[%clk 0:02:52]} 7. Bc4 {[%clk 0:02:54]}  Bg4 {[%clk 0:02:43]} 8. f3 {[%clk 0:02:29]}  Bh5 {[%clk 0:02:40]} 9. Nge2 {[%clk 0:02:21]}  Bb4 {[%clk 0:02:36]} 10. Ng3 {[%clk 0:02:16]}  Bg6 {[%clk 0:02:35]} 11. Qe2 {[%clk 0:02:14]}  O-O {[%clk 0:02:33]} 12. O-O {[%clk 0:02:13]}  Nbd7 {[%clk 0:02:25]} 13. Kh1 {[%clk 0:02:12]}  Nc5 {[%clk 0:02:17]} 14. Rfe1 {[%clk 0:02:01]}  Rfe8 {[%clk 0:02:11]} 15. Nf5 {[%clk 0:01:36]}  Ne6 {[%clk 0:02:10]} 16. Rad1 {[%clk 0:01:27]}  Rad8 {[%clk 0:02:09]} 17. Bxe6 {[%clk 0:01:11]}  Rxe6 {[%clk 0:02:06]} 18. Bg5 {[%clk 0:01:00]}  Rde8 {[%clk 0:01:37]} 19. Qe3 {[%clk 0:00:50]}  h6 {[%clk 0:01:28]} 20. Bxh6 {[%clk 0:00:46]}  gxh6 {[%clk 0:01:27]} 21. Qxh6 {[%clk 0:00:46]}  Bf8 {[%clk 0:01:22]} 22. Qg5 {[%clk 0:00:37]}  Nh7 {[%clk 0:01:21]} 23. Qg3 {[%clk 0:00:36]}  Qc7 {[%clk 0:01:07]} 24. h4 {[%clk 0:00:33]}  Nf6 {[%clk 0:00:59]} 25. Qg5 {[%clk 0:00:25]}  Kh8 {[%clk 0:00:47]} 26. g4 {[%clk 0:00:24]}  Nh7 {[%clk 0:00:41]} 27. Qe3 {[%clk 0:00:20]}  b6 {[%clk 0:00:35]} 28. Rg1 {[%clk 0:00:14]}  Rd8 {[%clk 0:00:30]} 29. Rxd8 {[%clk 0:00:12]}  Qxd8 {[%clk 0:00:29]} 30. g5 {[%clk 0:00:07]}  f6 {[%clk 0:00:20]} 31. Qf2 {[%clk 0:00:05]}  fxg5 {[%clk 0:00:19]} 32. h5 {[%clk 0:00:05]}  Bxf5 {[%clk 0:00:14]} 33. exf5 {[%clk 0:00:04]}  Rh6 {[%clk 0:00:13]} 34. Qh2 {[%clk 0:00:03]}  Qe8 {[%clk 0:00:11]} 35. Rg3 {[%clk 0:00:01]}  Rxh5 {[%clk 0:00:10]} 36. Rh3 {[%clk 0:00:02]}  Rxh3 {[%clk 0:00:09]} 37. Qxh3 {[%clk 0:00:03]}  Qf7 {[%clk 0:00:00]} 38. Ne4 {[%clk 0:00:04]} 1-0


[Site "https://www.chess.com"]

[Event "Titled Tuesday Blitz November 14 Late 2023"]
[White "Marchesich, Giovanni"]
[Black "Tsukerman, Julia"]
[WhiteFideId "2824790"]
[BlackFideId "2621649"]
[WhiteElo "2397"]
[BlackElo "2161"]
[Result "1-0"]
[Round "5"]
[TimeControl "180+1"]
[Date "2023.11.14"]
[WhiteClock "0:01:52"]
[BlackClock "0:00:00"]
[Board "129"]

1. Nc3 {[%clk 0:03:00]}  d5 {[%clk 0:02:57]} 2. d4 {[%clk 0:03:00]}  Nf6 {[%clk 0:02:55]} 3. Bf4 {[%clk 0:02:59]}  e6 {[%clk 0:02:50]} 4. e3 {[%clk 0:02:59]}  Be7 {[%clk 0:02:39]} 5. g4 {[%clk 0:02:58]}  c5 {[%clk 0:02:26]} 6. g5 {[%clk 0:02:55]}  Ne4 {[%clk 0:02:24]} 7. Nxe4 {[%clk 0:02:55]}  dxe4 {[%clk 0:02:20]} 8. dxc5 {[%clk 0:02:55]}  Qa5+ {[%clk 0:02:11]} 9. c3 {[%clk 0:02:55]}  Qxc5 {[%clk 0:02:09]} 10. Qd4 {[%clk 0:02:55]}  Qxd4 {[%clk 0:02:00]} 11. exd4 {[%clk 0:02:55]}  Bd7 {[%clk 0:01:41]} 12. Bg2 {[%clk 0:02:54]}  Bc6 {[%clk 0:01:36]} 13. Ne2 {[%clk 0:02:54]}  f5 {[%clk 0:01:29]} 14. gxf6 {[%clk 0:02:53]}  gxf6 {[%clk 0:01:25]} 15. O-O-O {[%clk 0:02:48]}  Nd7 {[%clk 0:01:13]} 16. Ng3 {[%clk 0:02:47]}  f5 {[%clk 0:01:06]} 17. c4 {[%clk 0:02:48]}  Nf6 {[%clk 0:00:57]} 18. Be5 {[%clk 0:02:48]}  Kf7 {[%clk 0:00:48]} 19. d5 {[%clk 0:02:46]}  Ba4 {[%clk 0:00:28]} 20. b3 {[%clk 0:02:45]}  Ba3+ {[%clk 0:00:16]} 21. Kb1 {[%clk 0:02:43]}  Bd7 {[%clk 0:00:15]} 22. Rhe1 {[%clk 0:02:28]}  Rhe8 {[%clk 0:00:13]} 23. d6 {[%clk 0:02:14]}  Ng4 {[%clk 0:00:13]} 24. Bd4 {[%clk 0:02:07]}  Bxd6 {[%clk 0:00:10]} 25. Bxa7 {[%clk 0:02:06]}  Ke7 {[%clk 0:00:06]} 26. Bb6 {[%clk 0:01:59]}  Ra6 {[%clk 0:00:06]} 27. c5 {[%clk 0:01:57]}  Bxg3 {[%clk 0:00:02]} 28. hxg3 {[%clk 0:01:50]}  Nxf2 {[%clk 0:00:02]} 29. Rxd7+ {[%clk 0:01:50]}  Kxd7 {[%clk 0:00:02]} 30. c6+ {[%clk 0:01:51]}  Kxc6 {[%clk 0:00:00]} 31. Bxf2 {[%clk 0:01:52]} 1-0


[Site "https://www.chess.com"]